{"text_format":"3","workbook":"xlsx","n_sheets":4,"sheets":["Sammendrag","Aktiva","Passiva","Kategorier"],"not_rendered":{"defined_names":10},"read":"whole","date_system":"1900"}

{"sheet":"Sammendrag","index":0,"n_rows":12,"n_cols":4,"rows_kept":12}
[null,"Balanse"]
[null,null,{"$f":"\"FY-\"&YEAR(TODAY())-1","v":"FY-2016"},{"$f":"\"FY-\"&YEAR(TODAY())","v":"FY-2017"}]
[null,"Aktiva-type","Forrige år","Nåværende år"]
[null,"Gjeldende aktiva",{"$f":"SUMIFS(Aktiva[Forrige år],Aktiva[Aktiva-type],Instrumentbord[[#This Row],[Aktiva-type]])+SUMIFS(Passiva[Forrige år],Passiva[Passiva-type],Instrumentbord[[#This Row],[Aktiva-type]])","v":600},{"$f":"SUMIFS(Aktiva[Nåværende år],Aktiva[Aktiva-type],Instrumentbord[[#This Row],[Aktiva-type]])+SUMIFS(Passiva[Nåværende år],Passiva[Passiva-type],Instrumentbord[[#This Row],[Aktiva-type]])","v":600}]
[null,"Anleggsmidler",{"$f":"SUMIFS(Aktiva[Forrige år],Aktiva[Aktiva-type],Instrumentbord[[#This Row],[Aktiva-type]])+SUMIFS(Passiva[Forrige år],Passiva[Passiva-type],Instrumentbord[[#This Row],[Aktiva-type]])","v":{"v":-100,"d":"-100 "}},{"$f":"SUMIFS(Aktiva[Nåværende år],Aktiva[Aktiva-type],Instrumentbord[[#This Row],[Aktiva-type]])+SUMIFS(Passiva[Nåværende år],Passiva[Passiva-type],Instrumentbord[[#This Row],[Aktiva-type]])","v":{"v":-85,"d":"-85 "}}]
[null,"Andre aktiva",{"$f":"SUMIFS(Aktiva[Forrige år],Aktiva[Aktiva-type],Instrumentbord[[#This Row],[Aktiva-type]])+SUMIFS(Passiva[Forrige år],Passiva[Passiva-type],Instrumentbord[[#This Row],[Aktiva-type]])","v":0},{"$f":"SUMIFS(Aktiva[Nåværende år],Aktiva[Aktiva-type],Instrumentbord[[#This Row],[Aktiva-type]])+SUMIFS(Passiva[Nåværende år],Passiva[Passiva-type],Instrumentbord[[#This Row],[Aktiva-type]])","v":0}]
[null,"Gjeldende passiva",{"$f":"SUMIFS(Aktiva[Forrige år],Aktiva[Aktiva-type],Instrumentbord[[#This Row],[Aktiva-type]])+SUMIFS(Passiva[Forrige år],Passiva[Passiva-type],Instrumentbord[[#This Row],[Aktiva-type]])","v":500},{"$f":"SUMIFS(Aktiva[Nåværende år],Aktiva[Aktiva-type],Instrumentbord[[#This Row],[Aktiva-type]])+SUMIFS(Passiva[Nåværende år],Passiva[Passiva-type],Instrumentbord[[#This Row],[Aktiva-type]])","v":350}]
[null,"Langsiktige passiva",{"$f":"SUMIFS(Aktiva[Forrige år],Aktiva[Aktiva-type],Instrumentbord[[#This Row],[Aktiva-type]])+SUMIFS(Passiva[Forrige år],Passiva[Passiva-type],Instrumentbord[[#This Row],[Aktiva-type]])","v":0},{"$f":"SUMIFS(Aktiva[Nåværende år],Aktiva[Aktiva-type],Instrumentbord[[#This Row],[Aktiva-type]])+SUMIFS(Passiva[Nåværende år],Passiva[Passiva-type],Instrumentbord[[#This Row],[Aktiva-type]])","v":0}]
[null,"Egenkapital",{"$f":"SUMIFS(Aktiva[Forrige år],Aktiva[Aktiva-type],Instrumentbord[[#This Row],[Aktiva-type]])+SUMIFS(Passiva[Forrige år],Passiva[Passiva-type],Instrumentbord[[#This Row],[Aktiva-type]])","v":0},{"$f":"SUMIFS(Aktiva[Nåværende år],Aktiva[Aktiva-type],Instrumentbord[[#This Row],[Aktiva-type]])+SUMIFS(Passiva[Nåværende år],Passiva[Passiva-type],Instrumentbord[[#This Row],[Aktiva-type]])","v":350}]
[null,"Totale aktiva",{"$f":"Aktiva[[#Totals],[Forrige år]]","v":500},{"$f":"Aktiva[[#Totals],[Nåværende år]]","v":515}]
[null,"Totale passiva og aksjonærenes egenkapital",{"$f":"Passiva[[#Totals],[Forrige år]]","v":500},{"$f":"Passiva[[#Totals],[Nåværende år]]","v":700}]
[null,"Saldo",{"$f":"C10-C11","v":0},{"$f":"D10-D11","v":{"v":-185,"d":"-185 "}}]

{"sheet":"Aktiva","index":1,"n_rows":14,"n_cols":5,"rows_kept":14}
[null,"Aktiva"]
[{"$nulls":3},{"$f":"FY_YEAR","v":"FY-2016"},{"$f":"FY_YEAR_2","v":"FY-2017"}]
[null,"Aktiva-type","Beskrivelse","Forrige år","Nåværende år"]
[null,"Gjeldende aktiva","Kontanter",600,600]
[null,"Gjeldende aktiva","Investeringer"]
[null,"Gjeldende aktiva","Beholdninger"]
[null,"Gjeldende aktiva","Utestående fordringer "]
[null,"Gjeldende aktiva","Forhåndsbetalte utgifter"]
[null,"Anleggsmidler","Eiendom og utstyr"]
[null,"Anleggsmidler","Leasingsforbedringer"]
[null,"Anleggsmidler","Egenkapital og andre investeringer"]
[null,"Anleggsmidler","Minus akkumulert avskrivning (negativ verdi)",{"v":-100,"d":"-100 "},{"v":-85,"d":"-85 "}]
[null,"Andre aktiva","Veldedighet"]
[null,"Totale aktiva",null,{"$f":"SUBTOTAL(109,Aktiva[Forrige år])","v":500},{"$f":"SUBTOTAL(109,Aktiva[Nåværende år])","v":515}]

{"sheet":"Passiva","index":2,"n_rows":12,"n_cols":5,"rows_kept":12}
[null,"Passiva"]
[{"$nulls":3},{"$f":"FY_YEAR","v":"FY-2016"},{"$f":"FY_YEAR_2","v":"FY-2017"}]
[null,"Passiva-type","Beskrivelse","Forrige år","Nåværende år"]
[null,"Gjeldende passiva","Leverandørgjeld",null,350]
[null,"Gjeldende passiva","Oppsamlet lønn"]
[null,"Gjeldende passiva","Oppsamlet kompensasjon",500]
[null,"Gjeldende passiva","Inntektsskatt"]
[null,"Gjeldende passiva","Ikke-opptjent omsetning"]
[null,"Langsiktige passiva","Pantelån"]
[null,"Egenkapital","Investeringskapital",null,350]
[null,"Egenkapital","Akkumulerte inntekter"]
[null,"Totale passiva og aksjonærenes egenkapital",null,{"$f":"SUBTOTAL(109,Passiva[Forrige år])","v":500},{"$f":"SUBTOTAL(109,Passiva[Nåværende år])","v":700}]

{"sheet":"Kategorier","index":3,"n_rows":9,"n_cols":2,"rows_kept":9}
[null,"Kategorier"]
[]
[null,"Kategorier"]
[null,"Gjeldende aktiva"]
[null,"Anleggsmidler"]
[null,"Andre aktiva"]
[null,"Gjeldende passiva"]
[null,"Langsiktige passiva"]
[null,"Egenkapital"]